Workbook

Sheet Приложение № 2.26
C1: Приложение № 2.26
C2: к Закону Приднестровской Молдавской Республики
C3: "О республиканском бюджете на 2026 год"
A5: Смета расходов на финансирование государственного заказа по обеспечению создания, сопровождения и развития комплекса информационных систем, используемых для реализации государственных функций и предоставления государственных услуг в электронной форме "Элекронное Правительство" на 2026 год
A7: № п/п | B7: Наименование | C7: Стоимость сопровождения ГИС, руб. | D7: Стоимость создания ГИС, руб. | E7: Стоимость развития ГИС, руб. | F7: Стои- мость ГИС, руб.
A8: Министерство цифрового развития, связи и массовых коммуникаций Приднестровской Молдавской Республики
A9: 1. | B9: Государственная информационная система "Корневой удостоверяющий центр Приднестровской Молдавской Республики" | C9: 81831 | F9: =SUM(C9:E9) -> 81831
A10: 2. | B10: Государственная информационная система "Сеть передачи данных межведомственного электронного взаимодействия Приднестровской Молдавской Республики" | C10: 402695 | F10: 402695
A11: 3. | B11: Государственная информационная система "Система межведомственного обмена данными" | C11: 344394 | F11: 344394
A12: 4. | B12: Государственная информационная система "Межведомственный электронный документооборот" | C12: 733032 | D12: 211558 | E12: 29288 | F12: 973878
A13: 5. | B13: Государственная информационная система "Портал государственных услуг Приднестровской Молдавской Республики" | C13: 371940 | F13: 371940
A14: 6. | B14: Государственная информационная система "Единый реестр государственных услуг" | C14: 86663 | F14: 86663
A15: 7. | B15: Государственная информационная система "Реестр документов разрешительного характера" | C15: 93222 | F15: 93222
A16: 8. | B16: Государственная информационная система "Регистрация юридических лиц "Одно окно" | C16: 68851 | F16: 68851
A17: 9. | B17: Государственная информационная система "Регистрация индивидуальных предпринимателей "Одно окно" | C17: 68851 | F17: 68851
A18: 10. | B18: Государственная информационная система "Государственный земельный кадастр" | C18: 371785 | F18: 371785
A19: 11. | B19: Государственная информационная система "Электронные платежи" | C19: 644821 | D19: 203587 | F19: 848408
A20: 12. | B20: Информационная система "Единый реестр объектов недвижимого имущества и земель" | D20: 55000 | F20: 55000
A21: 13. | B21: Государственная информационная система "Централизованное создание и хранение резервных копий информации органов государственной власти и организаций" | D21: 93000 | F21: 93000
B22: Итого | C22: =C9+C10+C11+C12+C13+C14+C15+C16+C17+C18+C19+C20+C21 -> 3268085 | D22: =D9+D10+D11+D12+D13+D14+D15+D16+D17+D18+D19+D20+D21 -> 563145 | E22: =E9+E10+E11+E12+E13+E14+E15+E16+E17+E18+E19+E20+E21 -> 29288 | F22: 3860518
A23: Министерство экономического развития Приднестровской Молдавской Республики
A24: 1. | B24: Государственная информационная система "Закупки" | C24: 360879 | E24: 0 | F24: =SUM(C24:E24) -> 360879
A25: 2. | B25: Государственная информационная система "Государственное имущество" | C25: 232942 | E25: 0 | F25: =SUM(C25:E25) -> 232942
B26: Итого | C26: =SUM(C24:C25) -> 593821 | D26: =SUM(D24:D25) -> 0 | E26: =SUM(E24:E25) -> 0 | F26: =SUM(F24:F25) -> 593821
A27: Министерство юстиции Приднестровской Молдавской Республики
A28: 1. | B28: Государственная информационная система "Юридическая литература" | C28: 314766 | D28: 0 | E28: 0 | F28: =C28+D28+E28 -> 314766
B29: Итого | C29: =SUM(C27:C28) -> 314766 | D29: =SUM(D27:D28) -> 0 | E29: =SUM(E27:E28) -> 0 | F29: =SUM(F27:F28) -> 314766
B30: Всего | C30: =C26+C22+C29 -> 4176672 | D30: =D26+D22+D29 -> 563145 | E30: =E26+E22+E29 -> 29288 | F30: =F26+F22+F29 -> 4769105
A32: Примечание.
A33: Разрешить исполнительному органу государственной власти, ответственному за исполнение республиканского бюджета, на основании обоснованных обращений главных распределителей бюджетных средств перераспределять средства в пределах общей стоимости государственного заказа, утвержденного настоящим Приложением
